Cogmind - Beta 10.1 @@@ ROGUE MODE // 2020.09.23 @ 21:38:29 Player: Turbografx16 Result: Self-destructed Performance ------------- Evolutions (2) 1000 Regions Visited (4) 800 Robots Destroyed (32) 160 Value Destroyed (810) 810 Prototype IDs (1) 20 Alien Tech Used (0) 0 Bonus (-52) -52 TOTAL SCORE: 2738 Bonus ------- High Alert Combat Kills 19 Follower Combat Kills 40 Friendly Fire -111 Cogmind --------- Core Integrity 507/550 Matter 10/300 Energy 2/100 System Corruption 0% Temperature Cool (13) Movement Flying (31) Location -8/Materials Parts ------- > --- POWER (1) -------- (None) > --- PROPULSION (5) --- VTOL Module VTOL Module VTOL Module VTOL Module > --- UTILITY (3) ------ Medium Storage Unit Sensor Array Advanced Targeting Computer > --- WEAPON (2) ------- Minigun > --- INVENTORY (8) ---- Cesium-ion Thruster Cesium-ion Thruster Faulty Improved VTOL Module Advanced Sensor Array Advanced Signal Interpreter Advanced Terrain Scanner Hardened Medium Armor Plating Hardened Medium Armor Plating Peak State ------------ > --- POWER ------------ Light Nuclear Core > --- PROPULSION ------- VTOL Module VTOL Module VTOL Module VTOL Module VTOL Module > --- UTILITY ---------- Medium Storage Unit Advanced Targeting Computer Advanced Targeting Computer > --- WEAPON ----------- Minigun Minigun > --- INVENTORY -------- Hardened Medium Armor Plating Hardened Medium Armor Plating Minigun [Rating: 26] Favorites ----------- Power Light Ion Engine Engine Light Ion Engine Power Core Light Nuclear Core Propulsion Aluminum Leg Treads Light Treads Leg Aluminum Leg Hover Unit Improved Hover Unit Flight Unit VTOL Module Utility Advanced Targeting Computer Device Sensor Array Storage Medium Storage Unit Processor Advanced Targeting Computer Weapon Minigun Energy Gun Improved EM Shotgun Ballistic Gun Minigun Ballistic Cannon Flak Cannon Launcher Grenade Launcher Build | -11 -10 -10 -9 -8 ------- Run | Scr Mat Min Mat Mat Slots Evolved 4 | . . . 2 2 Power . | . . . . . Propulsion 3 | . . . 1 2 Utility 1 | . . . 1 . Weapon . | . . . . . Parts Attached 44 | . 2 2 35 5 Power 4 | . . . 4 . Engine 2 | . . . 2 . Core 2 | . . . 2 . Reactor . | . . . . . Propulsion 14 | . . . 10 4 Treads 3 | . . . 3 . Leg . | . . . . . Wheel . | . . . . . Hover 6 | . . . 6 . Flight 5 | . . . 1 4 Utility 6 | . 2 . 3 1 Device 1 | . . . . 1 Storage 2 | . 2 . . . Processor 3 | . . . 3 . Hackware . | . . . . . Protection . | . . . . . Artifact . | . . . . . Weapon 20 | . . 2 18 . Energy Gun 1 | . . . 1 . Energy Cannon . | . . . . . Ballistic Gun 8 | . . 1 7 . Ballistic Cannon 5 | . . . 5 . Launcher 6 | . . 1 5 . Special Weapon . | . . . . . Impact Weapon . | . . . . . Slashing Weapon . | . . . . . Piercing Weapon . | . . . . . Special Melee Weapon . | . . . . . Unidentified Prototypes 1 | . . . 1 . Parts Lost 7 | . . . 5 2 Power 3 | . . . 2 1 Propulsion 2 | . . . 2 . Utility . | . . . . . Weapon 2 | . . . 1 1 Highest Loss Streak 2 | . . . 2 2 Average Slot Usage (%) 96 | . 94 100 94 95 Engine 8 | . 14 14 5 . Core 3 | . . . 4 8 Treads 3 | . . . 7 . Leg 13 | . 28 28 6 . Hover 7 | . . . 14 . Flight 5 | . . . 1 40 Storage 18 | . 23 28 14 9 Processor 10 | . . . 18 9 Ballistic Gun 12 | . 28 14 8 18 Ballistic Cannon 6 | . . . 11 . Launcher 4 | . . 14 1 . Naked Turns . | . . . . . Heaviest Build 27 | 10 18 20 27 20 Greatest Support 40 | 20 20 20 40 25 Greatest Overweight (x) 3 | . . . 3 . Average Overweight (x) . | . . . . . Largest Inventory Capacity 10 | 6 10 10 10 8 Average Capacity 8 | 6 8 10 8 8 Most Carried 10 | 5 7 9 10 8 Average Carried 7 | 5 4 8 7 4 Final Capacity 10 | 6 10 10 8 8 Final Carried 9 | 4 7 9 7 8 Class Distribution -------------------- 89% | Mutant 10% | Sprinter Dominant Class ---------------- Mutant | -10/Materials Mutant | -10/Mines Mutant | -9/Materials Sprinter | -8/Materials Resources | -11 -10 -10 -9 -8 ----------- Run | Scr Mat Min Mat Mat Matter Collected 1024 | 200 . 80 744 . Remotely . | . . . . . Salvage Created 805 | . . 27 759 19 Parts 55 | . . 3 51 1 Haulers Intercepted . | . . . . . Recyclers Shooed 3 | . . . 3 . Parts Field Recycled . | . . . . . Retrieved Matter . | . . . . . Parts Self-Destructed . | . . . . . Prevented . | . . . . . Kills | -11 -10 -10 -9 -8 ------- Run | Scr Mat Min Mat Mat Combat Hostiles Destroyed 27 | . . 5 21 1 Guns 8 | . . 1 7 . Cannons 8 | . . . 8 . AOE 11 | . . 4 6 1 Classes Destroyed 7 | . . 1 6 . Worker 1 | . . . 1 . Recycler 3 | . . . 3 . Watcher 1 | . . . 1 . Swarmer 12 | . . 5 6 1 Grunt 10 | . . . 10 . Duelist 2 | . . . 2 . Sentry 3 | . . . 3 . Best Kill Streak 4 | . . 3 4 1 Combat Bots Only 3 | . . 3 3 1 Max Kills in Single Turn 3 | . . 3 3 1 Gunslinging . | . . . . . Exploded 3 | . . 3 3 1 Melee . | . . . . . Uniques/NPCs Destroyed . | . . . . . Combat | -11 -10 -10 -9 -8 -------- Run | Scr Mat Min Mat Mat Damage Taken 1284 | . . 60 948 276 Core 155 | . . . 112 43 Absorbed by Shields . | . . . . . Core Remaining (%) 90 | 100 . 100 72 . Volleys Fired 67 | . . 7 59 1 Largest 2 | . . 2 2 2 Hottest 88 | . . 50 88 50 Shots Fired 124 | . . 9 113 2 Gun 43 | . . 7 34 2 Cannon 73 | . . . 73 . Launcher 8 | . . 2 6 . Special . | . . . . . Kinetic 116 | . . 7 107 2 Thermal . | . . . . . Explosive 8 | . . 2 6 . Electromagnetic . | . . . . . Robot Hit Streak 22 | . . 1 22 4 Robot Miss Streak 6 | . . 1 6 . Penetration Max . | . . . . . Secondary Targets . | . . . . . Shots Hit Robots 106 | . . 3 101 2 Core Hits 76 | . . 5 68 3 Critical Hits 1 | . . . 1 . Critical Kills . | . . . . . Critical Parts Destroyed 1 | . . . 1 . Melee Attacks . | . . . . . Impact . | . . . . . Slashing . | . . . . . Piercing . | . . . . . Sneak Attacks . | . . . . . Combat Hostiles . | . . . . . Follow-up Attacks . | . . . . . Damage Inflicted 2433 | . . 172 1903 358 Guns 540 | . . 15 488 37 Cannons 832 | . . . 832 . Explosions 1061 | . . 157 583 321 Melee . | . . . . . Ramming . | . . . . . Kinetic 1372 | . . 15 1320 37 Thermal . | . . . . . Explosive 965 | . . 157 583 225 Electromagnetic 96 | . . . . 96 Impact . | . . . . . Slashing . | . . . . . Piercing . | . . . . . Highest Corruption 3 | . 3 3 2 . Average Corruption 2 | . 2 3 2 . Corruption Purged . | . . . . . Effects 13 | . . 6 7 . Message Errors 4 | . . 2 2 . Matter Fused 4 | . . 4 . . Heat Flow Errors 1 | . . . 1 . Data Loss (minor) 2 | . . . 2 . Targeting Errors 1 | . . . 1 . Weapon Failures 1 | . . . 1 . Overload Shots . | . . . . . Overflow Damage 80 | . . . 1 79 Projectiles . | . . . . . Explosions 80 | . . . 1 79 Melee . | . . . . . Knockbacks 30 | . . . 30 . Impact . | . . . . . Kinetic 25 | . . . 25 . Secondary 5 | . . . 5 . Self-Inflicted Damage 39 | . . . 39 . Shots 1 | . . . 1 . Rammed . | . . . . . Targets Rammed . | . . . . . Kicked . | . . . . . Crushed . | . . . . . Highest Temperature 276 | . . . 276 21 Average Temperature 65 | . . . 73 4 Received Heat Transfer 420 | . . . 339 81 Effects 2 | . . . 2 . Energy Bleed 2 | . . . 2 . Siege Activations . | . . . . . Robots Corrupted . | . . . . . Combat Hostiles . | . . . . . Parts Fried . | . . . . . Impact Corruptions . | . . . . . Robots Melted . | . . . . . Combat Hostiles . | . . . . . Parts Melted . | . . . . . Heat Transferred . | . . . . . Parts Sabotaged . | . . . . . Parts Stolen . | . . . . . Parts Stripped . | . . . . . Power Chain Reactions . | . . . . . Missiles Intercepted . | . . . . . Alert | -11 -10 -10 -9 -8 ------- Run | Scr Mat Min Mat Mat Peak Influence 433 | . 28 189 433 266 Initial 111 | . . 10 73 111 Average 149 | . 14 40 229 145 Maximum Alert Level 2 | . . . 2 1 Low Security (%) 62 | 100 100 100 33 80 Level 1 36 | . . . 64 19 Level 2 1 | . . . 2 . Level 3 . | . . . . . Level 4 . | . . . . . Level 5 . | . . . . . High Security . | . . . . . Max Security . | . . . . . Squads Dispatched 6 | . . . 3 3 Investigation 1 | . . . . 1 Extermination . | . . . . . Reinforcement 5 | . . . 3 2 Assault . | . . . . . Garrison . | . . . . . Intercept . | . . . . . Construction Impeded . | . . . . . Haulers Reinforced . | . . . . . Stealth | -11 -10 -10 -9 -8 --------- Run | Scr Mat Min Mat Mat Distress Signals 3 | . . . 1 2 Communications Jammed . | . . . . . Distress Signals . | . . . . . Times Spotted 62 | . 1 6 33 22 Peak Tracking Total 11 | . 1 3 5 11 Tactical Retreats 4 | . . . 1 3 Traps | -11 -10 -10 -9 -8 ------- Run | Scr Mat Min Mat Mat Traps Triggered 4 | . 2 . 1 1 Indirectly . | . . . . . Trap Hack Attempts . | . . . . . Triggered . | . . . . . Disarmed . | . . . . . Reprogrammed . | . . . . . Reused . | . . . . . Traps Extracted . | . . . . . Installed . | . . . . . Triggered . | . . . . . Machines | -11 -10 -10 -9 -8 ---------- Run | Scr Mat Min Mat Mat Machines Disabled 6 | . . 2 . 4 Max in Single Turn 2 | . . 1 . 2 Machines Sabotaged . | . . . . . Garrisons Compromised . | . . . . . Overloaded Fab Kills . | . . . . . Fab Network Shutdowns . | . . . . . Hacking | -11 -10 -10 -9 -8 --------- Run | Scr Mat Min Mat Mat Machines Accessed 11 | . 3 . 6 2 Terminals 8 | . 2 . 4 2 Fabricators . | . . . . . Repair Stations 1 | . . . 1 . Recycling Units 2 | . 1 . 1 . Scanalyzers . | . . . . . Garrison Access . | . . . . . Total Hacks 28 | . 8 . 14 6 Successful 18 | . 5 . 10 3 Failed 10 | . 3 . 4 3 Catastrophic 3 | . 1 . 1 1 Database Lockouts . | . . . . . Manual 20 | . 4 . 10 6 Terminals 21 | . 5 . 10 6 Fabricators . | . . . . . Repair Stations 2 | . . . 2 . Recycling Units 5 | . 3 . 2 . Scanalyzers . | . . . . . Garrison Access . | . . . . . Terminal Hacks 5 | . 2 . 3 . Level Access Points 2 | . 1 . 1 . Branch Access Points 1 | . . . 1 . Unreport Threat 1 | . . . 1 . Locate Traps 1 | . 1 . . . Fabricator Hacks . | . . . . . Repair Station Hacks 2 | . . . 2 . Scan Component 1 | . . . 1 . Repair 1 | . . . 1 . Recycling Unit Hacks 2 | . 1 . 1 . Report Inventory 2 | . 1 . 1 . Scanalyzer . | . . . . . Garrison Access Hacks . | . . . . . Unauthorized Hacks 9 | . 2 . 4 3 Terminals 9 | . 2 . 4 3 Botnet 8 | . 2 . 4 2 Detonate 1 | . . . . 1 Fabricators . | . . . . . Repair Stations . | . . . . . Recycling Units . | . . . . . Scanalyzers . | . . . . . Garrison Access . | . . . . . Data Cores Recovered . | . . . . . Used . | . . . . . Hacking Detections 6 | . . . 5 1 Full Trace Events . | . . . . . Feedback Events . | . . . . . Feedback Blocked . | . . . . . Robot Schematics Acquired . | . . . . . Robots Built . | . . . . . Matter . | . . . . . Time . | . . . . . Total Robot Build Rating . | . . . . . Part Schematics Acquired . | . . . . . Parts Built . | . . . . . Matter . | . . . . . Time . | . . . . . Total Part Build Rating . | . . . . . Parts Repaired 1 | . . . 1 . Time 32 | . . . 32 . Parts Recycled . | . . . . . Recycled Matter . | . . . . . Retrieved Matter . | . . . . . Retrieved Components . | . . . . . Parts Scanalyzed . | . . . . . Part Schematics Acquired . | . . . . . Parts Damaged . | . . . . . Bothacking | -11 -10 -10 -9 -8 ------------ Run | Scr Mat Min Mat Mat Used RIF Installer . | . . . . . Robots Hacked . | . . . . . Non-combat . | . . . . . Combat . | . . . . . Robot Hacks Applied . | . . . . . Relay Couplers Released . | . . . . . Robots Rewired . | . . . . . Allies Hacked . | . . . . . Hacks Repelled . | . . . . . Allies | -11 -10 -10 -9 -8 -------- Run | Scr Mat Min Mat Mat Total Allies 1 | . . 1 . . Largest Group 1 | . . 1 1 . Highest-Rated Group 31 | . . 31 31 . Highest-Rated Ally 31 | . . 31 31 . Total Orders . | . . . . . Ally Attacks 11 | . . 5 6 . Total Damage 171 | . . 106 65 . Kills 3 | . . 1 2 . Allies Corrupted . | . . . . . Allies Melted . | . . . . . Intel | -11 -10 -10 -9 -8 ------- Run | Scr Mat Min Mat Mat Robot Analysis Total . | . . . . . Derelict Logs Recovered 1 | . . 1 . . Drone Launches . | . . . . . Drone Recoveries . | . . . . . Exploration | -11 -10 -10 -9 -8 ------------- Run | Scr Mat Min Mat Mat Turns Passed 1912 | 1 169 529 1019 194 Spaces Moved 1345 | 1 136 415 531 262 Core . | . . . . . Treads 133 | . . . 133 . Legs 723 | 1 136 415 171 . Wheels . | . . . . . Hover 226 | . . . 226 . Flight 263 | . . . 1 262 Fastest Speed 28 | 120 120 120 52 28 Average Speed 100 | 120 120 120 114 29 Slowest Speed 320 | 120 120 120 320 31 Overloaded Moves . | . . . . . Propulsion Burnouts . | . . . . . Robots Hopped 7 | . . . . 7 Cave-ins Triggered . | . . . . . Exploration Rate (%) 41 | 2 27 82 61 34 Regions Visited 4 Branch Regions 1 Pre-discovered Areas . | . . . . . Known Exits Taken 2 | . . 1 1 . Unknown Exits Taken 2 | 1 1 . . . Scrap Searched 2 | . . 2 . . Spaces Dug . | . . . . . Terrain Destroyed 90 | . . 10 45 35 Melee . | . . . . . Projectile . | . . . . . AOE 90 | . . 10 45 35 Terrain Rammed . | . . . . . Walls Destroyed . | . . . . . Machines Disabled . | . . . . . Actions | -11 -10 -10 -9 -8 --------- Run | Scr Mat Min Mat Mat Total 1788 | 2 141 437 836 372 Wait 279 | . . 12 168 99 Move 1328 | . 135 414 530 249 Hop 6 | . . . . 6 Pick Up 31 | . 3 2 20 6 Fast Attach 15 | . 2 . 12 1 Attach 13 | . . . 9 4 Detach 1 | . . . . 1 Swap 16 | . . 2 14 . Drop 32 | 2 1 . 24 5 Fire 67 | . . 7 59 1 Melee . | . . . . . Ram . | . . . . . Kick . | . . . . . Crush . | . . . . . Escape Stasis . | . . . . . Rewire . | . . . . . Trap . | . . . . . Miscellaneous . | . . . . . Route ------- -11/Scrapyard -10/Materials (discovered 4 exits: Mat x3 / [*Min]) -10/Mines (discovered 3 exits: *Mat x2 / [*Exi]) -9/Materials (discovered 4 exits: *Mat x3 / Min) -8/Materials History --------- Turn | Location | Event 2 | -11/Scrapyard | Discovered new exit (range 0) 2 | -11/Scrapyard | Entered Materials 48 | -10/Materials | Identified exit to Materials 153 | -10/Materials | Discovered new exit (range 10) 171 | -10/Materials | Entered Mines 220 | -10/Mines | Met a Derelict bent on vengeance 228 | -10/Mines | Deemed a non-threat by the Exiles lab entrance 228 | -10/Mines | Discovered new exit (range 5) 268 | -10/Mines | Discovered exit to Materials (range 3) 306 | -10/Mines | Build established: Mutant 331 | -10/Mines | Learned Materials interactive machine intel 356 | -10/Mines | Received a Rocket Launcher from a helpful Derelict 605 | -10/Mines | Received a Mining Laser from a helpful Derelict 648 | -10/Mines | Discovered exit to Materials (range 7) 700 | -10/Mines | Entered Materials 700 | -9/Materials | Accompanied by 1 ally 700 | -9/Materials | Evolved 2 slots: Propulsion x1, Utility x1 701 | -9/Materials | Loaded intel: 18 interactive machine locations 705 | -9/Materials | Identified exit to Mines 1336 | -9/Materials | Identified exit to Materials 1470 | -9/Materials | Repaired Imp. Hover Unit 1719 | -9/Materials | Entered another Materials area 1719 | -8/Materials | Evolved 2 slots: Propulsion x2 1913 | -8/Materials | Self-destructed Last Messages --------------- Found 3 applicable machines. NJ7CZL97CW: Nuclear Reactor RD9WXN4RCH: Neutrino Reactor OOSC114U4A: Neutrino Reactor Infected machine control systems. 01877_ Dropped Minigun. 01877_ Acquired Adv. Signal Interpreter. 01886_ The unstable cave ceiling collapses. 01888_ Dropped VTOL Module. 01889_ Acquired Adv. Terrain Scanner. 01892_ O-24 Administrator: "IFF HANDSHAKE FAILED. SECURING TERMINAL." 01900_ ALERT: Hostiles spotted, dispatching reinforcements to Terminal M006. 01902_ Slug penetrates Neutrino Reactor. 01902_ Lgt. Nuclear Core destroyed. 01904_ Triggered Alarm Trap. 01904_ An alarm sounds. 01904_ ALERT: Alarm triggered, dispatching investigation squad. 01913_ Minigun destroyed. Map ----- +----------------------------------------------------+ | ?????????????##### / # #??????? | | ?????????????# ######## | | ?????????????# " " ! | | ?????????????# "R # # | | ?????????????# """ # # | | ?????????????# ##[[**==# | | ?????????????##### ##[[**==# | | ?????????????????#! %* ########## | | ?????????????????# #????????? | | ????########?????# ! #????????? | | ????# """ #?????# #????????? | | ????# """ #?????# #????????? | | ????# """ #?????# """#????????? | | ????# #?????# """#????????? | | ????# #?????# """#????????? | | ????# #?????# #????????? | | ????##+#"#############;##########??? | | ?????# # ! ???? | | ?????# # """ #??? | | ???####+### g"" + """ #??? | | ???# # "G # """ #??? | | ???# #ggg"" !!! # ???? | | ???#! #g g !! = #? #??? | | ???# !! # !! #? "Y" #??? | | ???# !! + ### ######?? """ #??? | | ???# ! #@ #?# #??????? ???? | | ???######## #?# #????????#####???? | | ??????????# #?# ????????????????? | | ??????????# #?# ???????????????? | | ??????????+ #?### ? ??????????????? | | ??????????# #???? ????????????????? | | ??????????# #???? ???????????????? | | ??????????####???? ????????????????? | | ???????????????????????????????????? | | ???????????????????????????????????? | | ???????????????????????????????????? | | ???????????????????????????????????? | | ???????????????????????????????????? | | ???????????????????????????????????? | | ???????????????????????????????????? | | ???????????????????????????????????? | | ???????????????????????????????????? | | ???????????????????????????????????? | | ???????????????????????????????????? | | | | | | | | | | | | | +----------------------------------------------------+ Best States ------------- Heat Dissipation 31 Energy Generation 14 Energy Capacity 160 Matter Stores 300 Matter Capacity 300 Sight Range 16 Robot Scan Range 10 Terrain Scan Density 10 Evasion (%) 64 Targeting Accuracy 16 Recoil Reduction 2 Item Schematics ----------------- None Robot Schematics ------------------ None Fabricated ------------ Nothing Alien Tech Used ----------------- None Achievements -------------- None Challenges ------------ None Game ------ Seed FireMagneticBoosters Manual? 0 Play Time 00:26:17 Cumulative 25.7 hours Start 2020.09.23 @ 21:12:03 End 2020.09.23 @ 21:38:29 Sessions 1 Manual Loads 0 Difficulty Rogue Special Mode None Game No. 48 Rogue 11 Adventurer 37 Explorer 0 Win Type - Total 1 Types 0/0/0/1/0/0/0/0/0 Lore% 23 Gallery% 34 Achievement% 39 Wizard Run 0 Options --------- ASCII 0 Keyboard 0 Movement Mouse Keybinds 0 Fullscreen 1 Font 20/SmallcapsGlow Map View 66x50 Tactical HUD 1 Map Filters NONE Filters NONE Steam 1 RUN: 415f5767-e46f-479d-8e45-188c97b4bde4